bitfinex/quotes_SOLUSD_20250206
["timestamp","ask_amount","ask_price","bid_price","bid_amount"]
[1738874461690,9.239e-05,192.33,192.32,33.78831853]
[1738874461990,9.239e-05,192.33,192.32,49.18017609]
[1738874463186,9.239e-05,192.33,192.32,54.37977609]
[1738874463893,20.91332454,192.43,192.35,0.25098]
[1738874464090,20.91332454,192.43,192.36,14.61219861]
[1738874464586,1.6063,192.44,192.4,14.61219861]
[1738874464768,1.6063,192.44,192.41,14.61219861]
[1738874464969,1.6063,192.44,192.39,14.61219861]
[1738874465185,1.6063,192.44,192.38,14.86317861]
[1738874465391,1.6063,192.44,192.39,5.1977]
[1738874465566,14.61219861,192.4,192.34,4.16]
[1738874465768,14.61219861,192.41,192.34,18.77219861]
[1738874465964,14.61219861,192.37,192.34,4.16]
[1738874466265,14.61219861,192.39,192.34,4.16]
[1738874466892,14.61219861,192.4,192.34,18.77219861]
[1738874467067,14.61219861,192.41,192.35,14.61219861]
[1738874467268,14.61219861,192.4,192.34,4.16]
[1738874467486,14.61219861,192.39,192.35,5.1988]
[1738874469895,14.61219861,192.41,192.35,5.1988]
[1738874470189,1.6063,192.44,192.39,14.86317861]
[1738874471294,1.6063,192.44,192.39,0.25098]
[1738874471587,14.61219861,192.43,192.37,14.61219861]
[1738874471789,1.6063,192.44,192.37,14.61219861]
[1738874471790,16.21849861,192.44,192.37,14.61219861]
[1738874472293,14.61219861,192.43,192.37,14.61219861]
[1738874472688,14.61219861,192.42,192.37,0.25098]
[1738874473388,14.61219861,192.4,192.36,5.1985]
[1738874473584,14.61219861,192.38,192.34,9.3591]
[1738874473784,14.61219861,192.37,192.31,5.1999]
[1738874473986,14.61219861,192.36,192.32,4.16]
[1738874474285,1.5591,192.42,192.31,4.16]
[1738874474286,14.61219861,192.34,192.31,4.16]
[1738874474594,14.61219861,192.33,192.31,4.16]
[1738874474777,14.61219861,192.36,192.31,4.16]
[1738874475090,14.61219861,192.34,192.31,4.16]
[1738874475294,6.2448,192.38,192.31,4.16]
[1738874475484,14.71795264,192.32,192.31,4.16]
[1738874475872,14.71795264,192.32,192.26,4.16]
[1738874476072,14.61219861,192.3,192.27,0.12549]
[1738874476281,0.10575403,192.32,192.27,0.12549]
[1738874476282,14.61219861,192.31,192.27,0.12549]
[1738874477184,14.61219861,192.31,192.28,5.2007]
[1738874477987,0.10575403,192.32,192.28,5.2007]
[1738874478189,0.10575403,192.32,192.28,19.81289861]
[1738874478795,0.10575403,192.32,192.28,5.2007]
[1738874479102,0.13575403,192.32,192.28,5.2007]
[1738874479280,14.74795264,192.32,192.28,5.2007]
[1738874479479,14.74795264,192.32,192.28,4.16]
[1738874479480,14.61219861,192.31,192.28,4.16]
[1738874479718,14.61766405,192.31,192.28,4.16]
[1738874480388,14.61766405,192.29,192.26,0.063]
[1738874480590,14.61766405,192.28,192.26,0.063]
[1738874480790,14.61766405,192.27,192.26,0.063]
[1738874481609,14.62453797,192.27,192.26,0.063]
[1738874482178,14.62453797,192.29,192.26,0.063]
[1738874482894,14.62453797,192.28,192.26,0.063]
[1738874483088,14.62453797,192.27,192.26,0.063]
[1738874484020,16.18483797,192.27,192.26,0.063]
[1738874484605,17.80713797,192.27,192.26,0.063]
[1738874487183,14.62453797,192.29,192.26,0.063]
[1738874487388,14.62453797,192.3,192.26,0.063]
[1738874488305,14.62453797,192.29,192.26,0.063]
[1738874488494,14.62453797,192.27,192.26,0.063]
[1738874489486,15.62453797,192.27,192.26,0.063]
[1738874489805,14.62453797,192.27,192.26,0.063]
[1738874490489,16.18483797,192.27,192.26,0.063]
[1738874494008,14.62453797,192.27,192.26,0.063]
[1738874494304,14.62453797,192.31,192.26,0.063]
[1738874494507,14.760292,192.32,192.26,14.81302797]
[1738874494686,0.13575403,192.32,192.27,14.62453797]
[1738874494892,0.13575403,192.32,192.28,14.62453797]
[1738874495486,0.10459693,192.29,192.27,14.62453797]
[1738874495802,0.10459693,192.29,192.26,4.223]
[1738874496596,23.39365722,192.28,192.26,4.223]
[1738874499720,23.39365722,192.27,192.26,0.063]
[1738874500807,24.95395722,192.27,192.26,0.063]
[1738874501797,25.95395722,192.27,192.26,0.063]
[1738874504087,24.95395722,192.27,192.26,0.063]
[1738874506624,25.95395722,192.27,192.26,0.063]
[1738874506919,20.0,192.24,192.21,0.063]
[1738874507097,23.39365722,192.22,192.21,0.063]
[1738874507714,24.39365722,192.22,192.21,0.063]
[1738874507898,47.78731444,192.22,192.21,0.063]
[1738874508298,50.90571444,192.22,192.21,0.063]
[1738874508606,1.0,192.2,192.19,0.063]
[1738874508803,47.78731444,192.2,192.19,0.063]
[1738874509895,46.78731444,192.2,192.19,0.063]
[1738874510313,43.39365722,192.2,192.19,0.063]
[1738874510613,44.95445722,192.2,192.19,0.063]
[1738874511012,69.34811444,192.2,192.19,0.063]
[1738874511208,68.34811444,192.2,192.19,0.063]
[1738874511414,69.34811444,192.2,192.19,0.063]
[1738874512705,68.34811444,192.2,192.19,0.063]
[1738874513019,23.39365722,192.2,192.19,0.063]
[1738874513233,23.39365722,192.24,192.19,0.063]
[1738874513395,84.7494,192.28,192.19,0.063]
[1738874513396,23.39365722,192.22,192.19,0.063]
[1738874514128,23.39365722,192.21,192.19,0.063]
[1738874515494,0.09611807,192.2,192.19,0.063]
[1738874515820,0.09611807,192.2,192.18,0.006]
[1738874516530,23.39365722,192.19,192.18,0.006]
[1738874518311,24.39365722,192.19,192.18,0.006]
[1738874518509,25.95455722,192.19,192.18,0.006]
[1738874518823,26.95455722,192.19,192.18,0.006]
[1738874519206,28.50355722,192.19,192.18,0.006]
[1738874519406,28.62904722,192.19,192.18,0.006]
[1738874519613,21.0,192.16,192.07,4.223]
[1738874519910,23.39365722,192.1,192.08,0.063]
[1738874520734,23.39365722,192.09,192.08,0.063]
[1738874522231,23.39365722,192.15,192.08,23.58214722]
[1738874522527,23.39365722,192.12,192.08,0.063]
[1738874522735,23.39365722,192.11,192.08,0.063]
[1738874523035,20.0,192.15,192.08,0.063]
[1738874523243,23.39365722,192.11,192.08,0.063]
[1738874525029,23.39365722,192.12,192.08,0.063]
[1738874526610,82.1,192.18,192.08,0.063]
[1738874526611,23.39365722,192.16,192.09,23.51914722]
[1738874526826,23.39365722,192.17,192.1,23.39365722]
[1738874527018,23.39365722,192.15,192.08,29.61745722]
[1738874527216,23.39365722,192.14,192.08,6.2238]
[1738874527428,23.39365722,192.11,192.08,0.063]
[1738874527653,23.39365722,192.12,192.08,0.063]
[1738874528537,1.5612,192.15,192.09,23.39365722]
[1738874528538,23.39365722,192.15,192.09,23.39365722]
[1738874528742,23.39365722,192.15,192.08,23.58214722]
[1738874529318,23.39365722,192.15,192.09,5.2058]
[1738874529519,82.1,192.17,192.12,23.39365722]
[1738874529721,82.1,192.17,192.13,23.39365722]
[1738874529928,0.03,192.18,192.14,23.39365722]
[1738874530129,0.03,192.18,192.17,23.39365722]
[1738874530454,0.03,192.18,192.17,37.18197575]
[1738874530858,0.03,192.18,192.17,37.30746575]
[1738874531148,0.09611807,192.2,192.19,15.50240853]
[1738874531323,0.09611807,192.2,192.19,63.06990794]
[1738874531324,1.807e-05,192.2,192.19,63.06990794]
[1738874531526,0.10539499,192.21,192.2,19.94081853]
[1738874531743,0.10539499,192.21,192.2,43.33447575]
[1738874532640,0.10539499,192.21,192.2,43.45996575]
[1738874532641,9.499e-05,192.21,192.2,43.45996575]
[1738874533639,9.499e-05,192.21,192.2,48.53737575]
[1738874533860,9.499e-05,192.21,192.2,6.1525]
[1738874534027,9.499e-05,192.21,192.19,6.7917]
[1738874534224,9.499e-05,192.21,192.2,23.51914722]
[1738874534943,9.499e-05,192.21,192.17,42.25988575]
[1738874535435,0.10003657,192.18,192.17,5.2034]
[1738874535640,0.10003657,192.18,192.17,28.59705722]
[1738874536152,0.10003657,192.18,192.17,42.51086575]
[1738874536358,3.657e-05,192.18,192.17,42.51086575]
[1738874537838,0.10590233,192.21,192.2,33.91380853]
[1738874537839,4.145e-05,192.21,192.2,33.91380853]
[1738874538050,6.553e-05,192.22,192.21,13.91380853]
[1738874538246,4.15e-05,192.23,192.22,15.46080853]
[1738874538555,4.15e-05,192.23,192.22,43.79444025]
[1738874538943,4.15e-05,192.23,192.22,42.88897575]
[1738874539953,4.15e-05,192.23,192.22,34.42844722]
[1738874541546,4.15e-05,192.23,192.22,32.75595722]
[1738874542636,4.15e-05,192.23,192.22,32.88144722]
[1738874543542,4.15e-05,192.23,192.22,32.75595722]
[1738874546864,4.15e-05,192.23,192.22,46.54427575]
[1738874548360,4.15e-05,192.23,192.22,32.88144722]
[1738874548560,4.15e-05,192.23,192.22,5.2023]
[1738874548767,4.15e-05,192.23,192.21,4.16]
[1738874548768,4.15e-05,192.23,192.21,5.2025]
[1738874549799,0.0300415,192.23,192.21,28.59615722]
[1738874550262,0.0300415,192.23,192.21,5.2025]
[1738874552084,0.0300415,192.23,192.21,28.59615722]
[1738874552378,0.0300415,192.23,192.21,5.2025]
[1738874555567,0.09805727,192.22,192.21,5.2025]
[1738874556682,0.09805727,192.22,192.21,19.8260582]
[1738874557886,0.09805727,192.22,192.21,5.2025]
[1738874558984,0.09805727,192.22,192.2,14.6235582]
[1738874559188,14.6235582,192.21,192.17,5.2666]
[1738874559362,14.6235582,192.2,192.17,0.063]
[1738874559563,14.6235582,192.18,192.17,0.063]
[1738874561288,16.1845582,192.18,192.17,0.063]
[1738874561664,17.1845582,192.18,192.17,0.063]
[1738874562582,25.99301206,192.18,192.17,0.063]
[1738874563081,26.11850206,192.18,192.17,0.063]
[1738874563293,40.78133059,192.18,192.17,0.063]
[1738874563497,25.99301206,192.18,192.17,0.063]
[1738874563696,24.99301206,192.18,192.17,0.063]
[1738874564177,25.99301206,192.18,192.17,0.063]
[1738874564383,1.0,192.14,192.08,0.063]
[1738874565299,1.5614,192.13,192.08,0.063]
[1738874565480,23.43201206,192.09,192.08,0.063]
[1738874567663,24.99371206,192.09,192.08,0.063]
[1738874569679,23.43201206,192.09,192.08,0.063]
[1738874569881,23.43201206,192.12,192.08,0.063]
[1738874570687,23.43201206,192.11,192.08,0.063]
[1738874571089,23.43201206,192.12,192.08,0.063]
[1738874571395,23.43201206,192.11,192.08,0.063]
[1738874571601,23.43201206,192.1,192.08,0.063]
[1738874571776,23.43201206,192.09,192.08,0.063]
[1738874572779,24.99371206,192.09,192.08,0.063]
[1738874574373,23.43201206,192.1,192.08,0.063]
[1738874574783,24.99371206,192.09,192.08,0.063]
[1738874575376,25.10510278,192.09,192.08,0.063]
[1738874575583,25.10510278,192.09,192.04,0.063]
[1738874575584,22.6039,192.05,192.04,0.063]
[1738874575920,23.43201206,192.02,192.01,0.063]
[1738874576113,24.43201206,192.02,192.01,0.063]
[1738874576395,23.43201206,192.02,192.01,0.063]
[1738874576897,25.99431206,192.02,192.01,0.063]
[1738874577089,24.99431206,192.02,192.01,0.063]
[1738874580802,23.43201206,192.02,192.01,0.063]
[1738874581009,24.99431206,192.02,192.01,0.063]
[1738874581301,49.55181412,192.02,192.01,0.0001]
[1738874581488,25.99431206,192.02,192.01,0.0001]
[1738874581803,23.43201206,192.02,192.01,0.0001]
[1738874582581,23.43201206,192.03,192.01,0.0001]
[1738874582807,14.65974096,192.03,192.01,0.0001]
[1738874582999,14.65974096,192.02,192.01,0.0001]
[1738874584988,16.22204096,192.02,192.01,0.0001]
[1738874585187,14.65974096,192.02,192.01,0.0001]
[1738874585390,16.22204096,192.02,192.01,0.0001]
[1738874585611,16.25204096,192.02,192.01,0.0001]
[1738874588709,0.03,192.02,192.01,0.0001]
[1738874588911,0.03,192.02,192.01,14.65984096]
[1738874590590,0.03,192.02,192.01,0.0001]
[1738874590823,0.03,192.02,192.01,19.86784096]
[1738874591325,0.03,192.02,192.01,0.0001]
[1738874591814,0.03,192.02,192.01,19.99333096]
[1738874592822,0.03,192.02,192.01,14.65984096]
[1738874593193,0.03,192.02,192.01,0.0001]
[1738874595411,0.13639167,192.02,192.01,0.0001]
[1738874595709,0.13639167,192.02,192.01,14.65984096]
[1738874595910,0.13639167,192.02,192.01,0.0001]
[1738874596914,16.35843263,192.02,192.01,0.0001]
[1738874597713,17.35843263,192.02,192.01,0.0001]
[1738874598220,16.35843263,192.02,192.01,0.0001]
[1738874598711,27.17125469,192.02,192.01,0.0001]
[1738874598912,63.18115624,192.02,192.01,0.0001]
[1738874599093,64.18115624,192.02,192.01,0.0001]
[1738874599299,22.0,191.99,191.89,4.223]
[1738874599504,23.47256302,191.9,191.89,0.063]
[1738874600017,23.47256302,191.91,191.89,0.063]
[1738874600217,23.47256302,191.9,191.89,0.063]
[1738874601018,25.03586302,191.9,191.89,0.063]
[1738874602216,23.47256302,191.9,191.89,0.063]
[1738874603007,25.03586302,191.9,191.89,0.063]
[1738874604224,23.47256302,191.9,191.89,0.063]
[1738874605317,23.47256302,191.91,191.89,0.063]
[1738874605525,23.47256302,191.9,191.89,0.063]
[1738874607122,23.47256302,191.91,191.89,0.063]
[1738874607340,23.47256302,191.9,191.89,0.063]
[1738874608325,23.47256302,191.91,191.89,0.063]
[1738874608502,23.47256302,191.93,191.89,0.063]
[1738874608703,82.1,191.94,191.89,23.53556302]
[1738874609105,82.1,191.94,191.89,0.063]
[1738874610003,23.47256302,191.92,191.89,0.063]
[1738874610208,23.47256302,191.9,191.89,0.063]
[1738874610403,23.47256302,191.92,191.89,0.063]
[1738874611216,23.47256302,191.91,191.89,0.063]
[1738874612123,25.03576302,191.91,191.89,0.063]
[1738874614226,105.57256302,191.9,191.89,0.063]
[1738874615430,105.68070607,191.9,191.89,0.063]
[1738874616027,107.24400607,191.9,191.89,0.063]
[1738874616208,25.14400607,191.9,191.89,0.063]
[1738874617009,48.61656909,191.9,191.89,0.063]
[1738874617312,49.74205909,191.9,191.89,0.063]
[1738874618430,49.74205909,191.9,191.88,0.063]
[1738874618624,49.74205909,191.9,191.84,0.063]
[1738874618625,20.0,191.86,191.84,0.063]
[1738874618829,14.69329036,191.85,191.84,0.063]
[1738874620337,16.25699036,191.85,191.84,0.063]
[1738874622216,98.35659036,191.89,191.84,0.063]
[1738874623132,14.69329036,191.88,191.84,0.063]
[1738874623451,98.35659036,191.89,191.84,0.063]
[1738874623932,82.1,191.89,191.86,14.69329036]
[1738874624134,82.1,191.89,191.85,14.69329036]
[1738874624459,82.1,191.89,191.87,14.69329036]
[1738874624617,82.1,191.89,191.85,14.69329036]
[1738874624815,82.1,191.89,191.84,14.75629036]
[1738874625223,14.69329036,191.85,191.84,0.063]
[1738874625538,16.25699036,191.85,191.84,0.063]
[1738874626036,82.1,191.88,191.84,0.063]
[1738874626217,14.69329036,191.87,191.84,0.063]
[1738874627628,82.1,191.88,191.84,0.063]
[1738874627838,0.10814305,191.9,191.87,14.69329036]
[1738874628145,0.10814305,191.9,191.88,14.69329036]
[1738874629137,0.10814305,191.9,191.88,5.2115]
[1738874629341,0.10814305,191.9,191.87,14.69329036]
[1738874629634,0.10814305,191.9,191.87,19.90509036]
[1738874629875,0.10814305,191.9,191.86,14.69329036]
[1738874630215,0.10814305,191.9,191.85,19.90569036]
[1738874630418,14.80143341,191.9,191.84,0.063]
[1738874630624,23.49229415,191.89,191.84,0.063]
[1738874630821,25.1637372,191.9,191.84,0.063]
[1738874631013,0.10814305,191.9,191.85,23.49229415]
[1738874631832,0.10814305,191.9,191.86,23.49229415]
[1738874632218,0.13814305,191.9,191.86,23.49229415]
[1738874632622,0.13814305,191.9,191.87,23.49229415]
[1738874632822,0.13814305,191.9,191.88,23.49229415]
[1738874633021,0.13814305,191.9,191.87,28.70399415]
[1738874633748,0.13814305,191.9,191.87,5.2117]
[1738874634043,0.13814305,191.9,191.86,4.16]
[1738874634545,0.13814305,191.9,191.86,9.372]
[1738874634725,0.13814305,191.9,191.86,32.86429415]
[1738874634924,0.13814305,191.9,191.86,9.372]
[1738874635147,0.13814305,191.9,191.86,9.252]
[1738874635444,0.09416051,191.87,191.86,9.252]
[1738874638549,0.09416051,191.87,191.86,32.74429415]
[1738874639050,0.09416051,191.87,191.86,36.56447793]
[1738874642926,0.09416051,191.87,191.86,13.07218378]
[1738874644251,0.09416051,191.87,191.86,36.56447793]
[1738874644954,0.09416051,191.87,191.86,36.62747793]
[1738874645341,0.12416051,191.87,191.86,36.62747793]
[1738874652669,0.12416051,191.87,191.86,27.80921601]
[1738874653869,0.12416051,191.87,191.86,41.72302454]
[1738874654055,6.051e-05,191.87,191.86,43.23912454]
[1738874654259,6.051e-05,191.87,191.86,44.02066545]
[1738874654552,1.928e-05,191.88,191.87,13.91380853]
[1738874654757,1.928e-05,191.88,191.87,28.58784076]
[1738874654957,1.928e-05,191.88,191.87,33.79964076]
[1738874655160,1.928e-05,191.88,191.87,37.61982454]
[1738874655469,0.10608179,191.88,191.87,37.61982454]
[1738874656666,0.10606251,191.88,191.87,37.61982454]
[1738874656975,0.11437236,191.89,191.87,37.61982454]
[1738874657270,0.11437236,191.89,191.88,29.24381915]
[1738874657974,0.11437236,191.89,191.88,29.36930915]
[1738874658669,0.11437236,191.89,191.88,33.18949293]
[1738874658865,0.11437236,191.89,191.88,37.49403454]
[1738874659886,0.11437236,191.89,191.88,7.98018378]
[1738874660478,0.11437236,191.89,191.88,3.82018378]
[1738874662360,0.11437236,191.89,191.88,18.49421601]
[1738874662569,0.11437236,191.89,191.88,23.70571601]
[1738874663766,0.11437236,191.89,191.88,37.49403454]
[1738874664662,81.65507346,191.93,191.88,37.49403454]
[1738874664981,81.65507346,191.93,191.9,14.67403223]
[1738874666181,81.65507346,191.93,191.89,19.88523223]
[1738874666355,81.65507346,191.93,191.91,3.82018378]
[1738874669094,81.65507346,191.93,191.9,3.82018378]
[1738874669670,83.24817346,191.93,191.9,3.82018378]
[1738874670277,83.24817346,191.93,191.87,19.94883223]
[1738874671477,81.68507346,191.93,191.9,14.67403223]
[1738874672287,81.68507346,191.93,191.88,14.67403223]
[1738874672590,81.68507346,191.93,191.89,14.67403223]
[1738874674890,81.68507346,191.93,191.89,19.88523223]
[1738874675503,0.10345484,191.9,191.89,5.2112]
[1738874678780,0.10345484,191.9,191.88,9.39041847]
[1738874679776,0.10345484,191.9,191.87,14.66521847]
[1738874682903,0.10345484,191.9,191.87,0.063]
[1738874684624,9.49387331,191.9,191.87,0.063]
[1738874684797,9.39041847,191.88,191.87,0.063]
[1738874686896,10.95381847,191.88,191.87,0.063]
[1738874687280,18.58271847,191.88,191.86,0.063]
[1738874687494,20.0,191.85,191.84,0.063]
[1738874687714,29.39041847,191.85,191.84,0.063]
[1738874688488,30.95411847,191.85,191.84,0.063]
[1738874688888,36.25995418,191.85,191.84,0.063]
[1738874693122,14.69625418,191.86,191.84,0.063]
[1738874693413,14.69625418,191.85,191.84,0.063]
[1738874695604,14.79761385,191.85,191.84,0.063]
[1738874696687,16.36131385,191.85,191.84,0.063]
[1738874696992,36.36131385,191.85,191.84,0.063]
[1738874701493,20.0,191.82,191.81,0.063]
[1738874701683,51.96580836,191.82,191.78,0.063]
[1738874701884,14.69625418,191.79,191.78,0.063]
[1738874702487,14.69625418,191.81,191.78,0.063]
[1738874702690,14.69625418,191.83,191.78,0.063]
[1738874702891,8.14825967,191.85,191.78,0.18849]
[1738874702892,14.69625418,191.84,191.78,0.18849]
[1738874703935,14.69625418,191.81,191.78,0.063]
[1738874704091,14.69625418,191.79,191.78,0.063]
[1738874705892,16.26045418,191.79,191.78,0.063]
[1738874706205,17.76425418,191.79,191.78,0.063]
[1738874706508,20.0,191.76,191.69,0.063]
[1738874706709,14.69625418,191.7,191.69,0.063]
[1738874707908,14.69625418,191.72,191.69,0.063]
[1738874708092,21.51583853,191.79,191.69,0.063]
[1738874708093,14.69625418,191.7,191.69,0.063]
[1738874712622,14.69625418,191.72,191.69,0.063]
[1738874712923,82.1,191.75,191.72,5.34139]
[1738874713218,16.26045418,191.79,191.72,20.03764418]
[1738874713801,14.69625418,191.77,191.72,0.12549]
[1738874714103,14.69625418,191.73,191.69,0.063]
[1738874714298,14.69625418,191.7,191.69,0.063]
[1738874714503,14.69625418,191.71,191.69,0.063]
[1738874714811,14.69625418,191.7,191.69,0.063]
[1738874715406,14.80622905,191.7,191.69,0.063]
[1738874721320,0.10997487,191.7,191.69,0.063]
[1738874724331,14.80622905,191.7,191.69,0.063]
[1738874724820,11.08904721,191.7,191.69,0.063]
[1738874728938,9.52414721,191.7,191.69,0.063]
[1738874729123,0.10997487,191.7,191.69,9.47717234]
[1738874729313,0.10997487,191.7,191.69,9.72815234]
[1738874729829,0.10997487,191.7,191.69,0.063]
[1738874730034,0.10997487,191.7,191.69,9.72815234]
[1738874730917,0.10997487,191.7,191.69,24.17332714]
[1738874731124,7.487e-05,191.7,191.69,37.53652714]
[1738874731316,0.00632804,191.73,191.72,20.50196]
[1738874731511,11.00787234,191.85,191.74,0.25098]
[1738874731718,11.00787234,191.85,191.8,0.12549]
[1738874731719,0.03,191.85,191.8,0.12549]
[1738874731925,0.03,191.85,191.83,9.41417234]
[1738874732323,0.03,191.85,191.84,9.53966234]
[1738874732638,0.03,191.85,191.84,29.96388087]
[1738874733140,0.03,191.85,191.84,21.76463234]
[1738874734636,0.03,191.85,191.84,27.02520931]
[1738874735435,0.12504478,191.85,191.84,27.02520931]
[1738874736742,0.12504478,191.85,191.84,40.43705784]
[1738874737447,0.12504478,191.85,191.84,9.60358]
[1738874737730,0.12504478,191.85,191.84,4.14]
[1738874738118,0.12504478,191.85,191.84,4.39098]
[1738874738919,0.12504478,191.85,191.84,9.60358]
[1738874739538,0.12504478,191.85,191.84,9.47809]
[1738874739722,0.12504478,191.85,191.82,9.353]
[1738874739923,14.79979409,191.85,191.8,4.14]
[1738874740117,14.67474931,191.82,191.8,4.14]
[1738874740731,14.67474931,191.81,191.8,4.14]
[1738874741042,14.67474931,191.84,191.8,4.14]
[1738874741223,0.12504478,191.85,191.81,0.12549]
[1738874741539,0.12504478,191.85,191.81,14.92572931]
[1738874742932,0.12504478,191.85,191.82,5.2132]
[1738874743536,0.12504478,191.85,191.8,9.3537]
[1738874743735,14.79979409,191.85,191.8,4.14]
[1738874744331,0.12504478,191.85,191.81,0.12549]
[1738874745248,0.12504478,191.85,191.81,20.01363931]
[1738874745435,0.12504478,191.85,191.81,5.33889]
[1738874747047,0.12504478,191.85,191.81,20.01363931]
[1738874747231,0.12504478,191.85,191.83,0.12549]
[1738874748148,0.12504478,191.85,191.84,0.12549]
[1738874748350,0.12504478,191.85,191.84,48.58855784]
[1738874748552,0.12504478,191.85,191.84,49.37034902]
[1738874748754,0.12504478,191.85,191.84,50.37034902]
[1738874749160,0.10783372,191.9,191.89,13.66282853]
[1738874749364,0.10783372,191.9,191.89,28.33757784]
[1738874750253,0.10783372,191.9,191.89,28.58855784]
[1738874750627,3.372e-05,191.9,191.89,28.58855784]
[1738874750826,1.454e-05,191.91,191.9,14.91380853]
[1738874751046,14.70474931,192.02,191.92,33.66282853]
[1738874751262,14.70474931,192.02,191.92,54.32934724]
[1738874752527,14.70474931,192.02,191.92,54.58032724]
[1738874752732,0.03,192.02,191.92,54.58032724]
[1738874752935,0.03,192.02,191.92,55.58032724]
[1738874753266,0.03,192.02,191.92,54.58032724]
[1738874753454,0.03,192.02,191.92,55.58032724]
[1738874753658,14.67474931,191.99,191.92,40.13622931]
[1738874754033,14.67474931,192.0,191.92,40.38720931]
[1738874755169,14.67474931,191.99,191.92,40.38720931]
[1738874755372,14.67474931,192.0,191.92,40.38720931]
[1738874755668,0.24550989,191.93,191.92,40.38720931]
[1738874756174,0.24550989,191.93,191.92,54.5804473]
[1738874756364,9.07e-06,191.94,191.93,14.91380853]
[1738874756543,3.36e-05,191.95,191.94,13.91380853]
[1738874756853,3.36e-05,191.95,191.94,14.92572931]
[1738874757073,3.36e-05,191.95,191.94,4.39098]
[1738874757429,3.36e-05,191.95,191.94,24.39098]
[1738874757751,3.36e-05,191.95,191.93,4.14]
[1738874758534,3.36e-05,191.95,191.94,14.92572931]
[1738874759037,3.36e-05,191.95,191.94,15.17670931]
[1738874759232,3.36e-05,191.95,191.94,28.58855784]
[1738874760251,3.36e-05,191.95,191.94,34.79845784]
[1738874760450,0.03,192.1,191.99,15.91380853]
[1738874760636,0.02186177,192.02,192.01,35.17670931]
[1738874760838,0.02186177,192.02,192.01,0.50196]
[1738874761066,0.02186177,192.02,192.01,0.12549]
[1738874762342,0.02186177,192.02,192.01,5.33349]
[1738874762762,0.02186177,192.02,191.99,5.2084]
[1738874762955,0.02186177,192.02,192.0,4.14]
[1738874763166,14.69661108,192.02,191.97,5.2091]
[1738874763340,14.67474931,192.01,191.98,4.14]
[1738874763837,14.67474931,192.0,191.96,4.14]
[1738874764342,14.67474931,191.99,191.96,4.14]
[1738874764544,14.67474931,192.0,191.96,4.14]
[1738874764940,14.72661108,192.02,191.97,0.12549]
[1738874765742,14.67474931,191.99,191.96,4.14]
[1738874766040,14.67474931,191.98,191.96,4.14]
[1738874766259,14.67474931,191.99,191.96,4.14]
[1738874766459,96.77474931,192.01,191.97,0.12549]
[1738874766655,82.1,192.01,191.97,0.12549]
[1738874768373,0.05186177,192.02,191.99,0.12549]
[1738874769179,0.05186177,192.02,192.01,20.0]
[1738874769348,0.05186177,192.02,192.01,35.17670931]
[1738874769666,0.05186177,192.02,192.01,48.58855784]
[1738874769860,0.05186177,192.02,192.01,49.36947137]
[1738874770337,0.05186177,192.02,192.01,54.57747137]
[1738874772256,0.03,192.05,192.04,0.50196]
[1738874772449,0.03,192.05,192.04,35.57647394]
[1738874772645,0.03,192.05,192.04,34.57647394]
[1738874772850,0.03,192.05,192.04,5.45818]
[1738874774651,0.03,192.05,192.04,20.38390931]
[1738874774847,0.03,192.1,192.04,34.5766125]
[1738874775058,0.03,192.1,192.06,48.58855784]
[1738874775364,0.03,192.1,192.06,53.50922732]
[1738874775564,0.13122062,192.07,192.06,53.50922732]
[1738874775777,0.13122062,192.07,192.06,53.50931775]
[1738874776473,0.13122062,192.07,192.06,58.71601775]
[1738874777173,0.13122062,192.07,192.06,60.71601775]
[1738874777174,2.062e-05,192.07,192.06,60.71601775]
[1738874777365,1.026e-05,192.11,192.1,35.91380853]
[1738874777565,4.306e-05,192.12,192.11,13.91380853]
[1738874778168,1.921e-05,192.14,192.13,15.91380853]
[1738874778373,1.921e-05,192.14,192.13,31.36888828]
[1738874778671,1.921e-05,192.14,192.13,34.57368828]
[1738874779042,0.09711204,192.16,192.13,34.57368828]
[1738874779043,9.221e-05,192.15,192.13,39.71368828]
[1738874779373,9.221e-05,192.15,192.14,29.58855784]
[1738874780167,4.25e-06,192.16,192.15,20.11800853]
[1738874780361,4.25e-06,192.16,192.15,35.57301461]